bitfinex-derivatives/quotes_ETHF0:USTF0_20250427
["timestamp","ask_amount","ask_price","bid_price","bid_amount"]
[1745748925185,4.82501,1812.9,1812.8,1.5695]
[1745748926582,11.9298,1812.9,1812.0,10.97299799]
[1745748926881,1.10332,1812.3,1812.2,1.6458]
[1745748927083,4.82532,1812.3,1812.2,1.6458]
[1745748927577,4.82532,1812.3,1812.1,41.90344]
[1745748927784,1.10338,1812.2,1812.1,51.77299799]
[1745748927983,1.10338,1812.2,1812.1,52.60759799]
[1745748928286,4.82538,1812.2,1812.1,52.60759799]
[1745748930483,4.82538,1812.2,1812.1,55.81539799]
[1745748930681,4.82538,1812.2,1812.1,52.60759799]
[1745748931590,4.82538,1812.2,1812.1,55.81539799]
[1745748932690,4.82538,1812.2,1812.1,44.8424]
[1745748935492,3.722,1812.2,1812.1,45.94584]
[1745748935794,4.82538,1812.2,1812.1,44.8424]
[1745748937495,4.16310025,1812.2,1812.1,44.8424]
[1745748937793,4.16310025,1812.2,1812.1,45.94584]
[1745748938096,3.05972025,1812.2,1812.1,45.94584]
[1745748941600,4.16310025,1812.2,1812.1,45.94584]
[1745748942696,3.05972025,1812.2,1812.1,45.94584]
[1745748945700,3.05972025,1812.2,1812.1,42.73804]
[1745748945901,3.05972025,1812.2,1812.1,45.94584]
[1745748951802,4.16310025,1812.2,1812.1,45.94584]
[1745748952003,3.05972025,1812.2,1812.1,45.94584]
[1745748956506,2.36988374,1812.2,1812.1,45.94584]
[1745748957004,1.70764076,1812.2,1812.1,45.94584]
[1745748959103,2.81102076,1812.2,1812.1,45.94584]
[1745748959407,1.70764076,1812.2,1812.1,45.94584]
[1745748963903,2.75791,1812.6,1812.1,45.94584]
[1745748963904,7.3567281,1812.8,1812.5,1.10318]
[1745748964205,1.10317,1812.6,1812.4,3.2078]
[1745748964399,1.10317,1812.6,1812.5,1.6795]
[1745748965105,1.10317,1812.6,1812.5,2.7827]
[1745748965299,4.82517,1812.6,1812.5,2.7827]
[1745748966011,3.722,1812.6,1812.5,2.7827]
[1745748967007,3.05987103,1812.6,1812.5,2.7827]
[1745748967704,4.16301103,1812.6,1812.5,2.7827]
[1745748970908,3.05987103,1812.6,1812.5,2.7827]
[1745748971314,3.05987103,1812.6,1812.5,4.4184]
[1745748972009,4.16301103,1812.6,1812.5,4.4184]
[1745748972810,4.16301103,1812.6,1812.5,3.3152]
[1745748973012,4.16301103,1812.6,1812.5,1.6795]
[1745748973211,6.57551103,1812.6,1812.5,1.6795]
[1745748973411,1.1032,1812.5,1812.4,3.2078]
[1745748973606,2.8317,1812.5,1812.4,3.2078]
[1745748973913,3.6219,1812.5,1812.4,3.2078]
[1745748974112,1.10332,1812.3,1812.2,0.8448]
[1745748974410,1.10336,1812.3,1812.1,5.93843]
[1745748974911,1.95606,1812.3,1812.1,5.93843]
[1745748975210,5.67806,1812.3,1812.1,5.93843]
[1745748975907,1.10338,1812.2,1812.1,4.835]
[1745748976212,1.10344,1812.1,1812.0,52.59959799]
[1745748976507,3.722,1812.2,1812.1,1.10344]
[1745748976701,3.722,1812.2,1812.1,2.69714]
[1745748977106,3.05973095,1812.2,1812.1,2.69714]
[1745748978311,3.05973095,1812.2,1812.1,5.90494]
[1745748978906,3.528,1812.4,1812.3,1.10332]
[1745748979107,3.722,1812.4,1812.0,32.86236]
[1745748979412,3.722,1812.4,1812.3,1.10332]
[1745748980110,3.722,1812.4,1812.3,41.90332]
[1745748982809,6.1964,1812.4,1812.3,41.90332]
[1745748987017,5.53422844,1812.4,1812.3,41.90332]
[1745748990019,3.05982844,1812.4,1812.3,41.90332]
[1745748996922,3.05982844,1812.4,1812.3,43.57372]
[1745748997119,2.39768924,1812.4,1812.3,43.57372]
[1745748999627,3.2078,1812.8,1812.7,1.10308]
[1745748999831,5.7201,1812.8,1812.7,1.10308]
[1745749000122,9.4421,1812.8,1812.7,1.10308]
[1745749000323,6.2343,1812.8,1812.7,1.10308]
[1745749000720,3.722,1812.8,1812.7,1.10308]
[1745749000925,3.03248359,1812.8,1812.7,1.10308]
[1745749001220,7.3567281,1812.9,1812.8,1.10302]
[1745749001418,7.3567281,1812.9,1812.8,1.94132]
[1745749001621,7.3567281,1812.9,1812.8,3.52542]
[1745749001821,9.0404281,1812.9,1812.8,3.52542]
[1745749002016,9.8853281,1812.9,1812.8,3.52542]
[1745749002629,2.5286,1812.9,1812.8,3.52542]
[1745749005425,8.2018281,1813.0,1812.9,1.10296]
[1745749005626,8.2018281,1813.0,1812.9,2.80206]
[1745749006318,9.8227281,1813.0,1812.9,2.80206]
[1745749006524,2.466,1813.0,1812.9,2.80206]
[1745749006830,0.8556,1813.1,1813.0,1.1029]
[1745749007031,1.81456761,1813.1,1813.0,1.1029]
[1745749008124,1.81456761,1813.1,1813.0,1.9406]
[1745749009432,5.02236761,1813.1,1813.0,1.9406]
[1745749009629,5.02236761,1813.1,1812.9,1.6991]
[1745749009932,1.6967,1813.0,1812.9,2.80206]
[1745749010632,3.2078,1813.1,1813.0,1.1029]
[1745749010934,3.2078,1813.1,1813.0,2.6841]
[1745749011428,4.8028,1813.1,1813.0,2.6841]
[1745749012331,4.8028,1813.1,1813.0,1.1029]
[1745749015834,3.2078,1813.1,1813.0,1.1029]
[1745749017033,2.54585642,1813.1,1813.0,1.1029]
[1745749017232,4.16195642,1813.1,1813.0,1.1029]
[1745749020431,5.26479642,1813.1,1813.0,1.1029]
[1745749020929,5.26479642,1813.1,1812.9,1.10291]
[1745749021130,2.5234,1813.0,1812.8,1.10299]
[1745749021332,2.5138,1812.9,1812.8,1.10299]
[1745749023040,2.54585642,1813.1,1813.0,1.1029]
[1745749023238,5.68475642,1813.1,1813.0,1.1029]
[1745749024528,2.75725,1813.0,1812.5,3.2078]
[1745749024839,3.2078,1812.8,1812.2,9.76409479]
[1745749025026,1.10317,1812.6,1812.4,1.10324]
[1745749025231,4.31097,1812.6,1812.4,1.10324]
[1745749025441,1.5701,1812.5,1812.4,1.10324]
[1745749026340,5.2921,1812.5,1812.4,1.10324]
[1745749027138,4.62994731,1812.5,1812.4,1.10324]
[1745749028342,5.73316731,1812.5,1812.3,49.24637479]
[1745749028639,1.6464,1812.4,1812.3,49.24637479]
[1745749028832,1.6464,1812.4,1812.3,50.93347479]
[1745749029232,5.3684,1812.4,1812.3,50.93347479]
[1745749030142,4.5837,1812.4,1812.3,43.59038]
[1745749030545,3.722,1812.4,1812.3,43.59038]
[1745749032436,5.4103,1812.4,1812.3,43.59038]
[1745749034445,6.51356,1812.4,1812.3,40.8]
[1745749034742,6.51356,1812.4,1812.1,6.6571]
[1745749034743,1.10334,1812.3,1812.1,6.6571]
[1745749034931,0.8417,1812.2,1812.1,6.6571]
[1745749035130,4.5637,1812.2,1812.1,6.6571]
[1745749035338,6.1228,1812.2,1812.1,6.6571]
[1745749035543,6.1228,1812.2,1812.1,47.4571]
[1745749037145,5.2811,1812.2,1812.1,47.4571]
[1745749039238,6.38448,1812.2,1812.1,40.8]
[1745749040953,5.2811,1812.2,1812.1,41.90344]
[1745749042147,5.2811,1812.2,1812.1,43.53174]
[1745749042350,5.2811,1812.2,1812.1,44.31704]
[1745749045751,6.38448,1812.2,1812.1,44.31704]
[1745749049152,1.1035,1812.0,1811.9,5.958]
[1745749049346,2.43,1812.1,1811.9,1.10355]
[1745749049546,2.7093,1812.0,1811.8,7.94638]
[1745749049749,1.10357,1811.9,1811.8,4.41938]
[1745749049949,2.80307,1811.9,1811.8,4.41938]
[1745749050254,6.52507,1811.9,1811.8,44.1158]
[1745749050552,6.52507,1811.9,1811.8,45.21943]
[1745749051746,5.4215,1811.9,1811.8,45.21943]
[1745749051946,6.52507,1811.9,1811.8,44.1158]
[1745749053154,6.52507,1811.9,1811.8,45.21943]
[1745749054855,5.4215,1811.9,1811.8,45.21943]
[1745749055259,3.722,1811.9,1811.8,45.21943]
[1745749059255,3.05964094,1811.9,1811.8,45.21943]
[1745749059759,3.05964094,1811.9,1811.8,45.31163]
[1745749069262,2.36971425,1811.9,1811.8,45.31163]
[1745749077673,1.70742969,1811.9,1811.8,45.31163]
[1745749078066,1.70742969,1811.9,1811.8,45.30703]
[1745749079266,1.01754171,1811.9,1811.8,45.30703]
[1745749083673,2.65804171,1811.9,1811.8,45.30703]
[1745749083875,2.65804171,1811.9,1811.8,44.50983]
[1745749084174,3.76161171,1811.9,1811.8,43.4062]
[1745749084369,4.57531171,1811.9,1811.8,43.4062]
[1745749084569,4.57531171,1811.9,1811.8,42.5609]
[1745749084875,4.57531171,1811.9,1811.8,2.86453]
[1745749086370,4.57531171,1811.9,1811.8,0.0922]
[1745749087777,3.91290039,1811.9,1811.8,0.0922]
[1745749090379,1.10369,1811.7,1811.6,44.43783]
[1745749091075,7.26359,1811.7,1811.6,44.43783]
[1745749091579,6.1599,1811.7,1811.6,44.43783]
[1745749091775,5.3347,1811.7,1811.6,44.43783]
[1745749091975,3.722,1811.7,1811.6,44.43783]
[1745749096372,3.03204562,1811.7,1811.6,44.43783]
[1745749097682,2.36970654,1811.7,1811.6,44.43783]
[1745749104486,2.36970654,1811.7,1811.6,47.96483]
[1745749105989,2.36970654,1811.7,1811.6,53.92283]
[1745749106285,1.67975984,1811.7,1811.6,53.92283]
[1745749107386,3.2078,1812.0,1811.9,1.10357]
[1745749107685,2.54547879,1812.0,1811.9,1.10357]
[1745749108088,6.26747879,1812.0,1811.9,1.10357]
[1745749108280,6.26747879,1812.0,1811.9,3.54817]
[1745749108883,3.722,1812.0,1811.9,6.75597]
[1745749117799,3.05973308,1812.0,1811.9,6.75597]
[1745749124709,0.73657385,1812.0,1811.9,10.28097]
[1745749124907,0.0467704,1812.0,1811.9,10.28097]
[1745749125108,3.348,1812.3,1812.2,1.10338]
[1745749126108,7.07,1812.3,1812.2,1.10338]
[1745749138918,7.07,1812.3,1812.2,2.75178]
[1745749141614,7.07,1812.3,1812.1,3.2078]
[1745749141817,1.6968,1812.2,1812.1,1.10344]
[1745749143119,5.4188,1812.2,1812.1,1.10344]
[1745749153825,5.4188,1812.2,1812.1,2.79914]
[1745749165032,6.52218,1812.2,1812.1,1.10344]
[1745749165530,1.10348,1812.1,1812.0,1.10348]
[1745749165835,3.52688,1812.1,1811.9,1.10352]
[1745749166132,1.9675,1812.0,1811.9,1.10352]
[1745749166333,3.6108,1812.0,1811.9,1.10352]
[1745749167234,7.3328,1812.0,1811.9,1.10352]
[1745749168838,7.3328,1812.0,1811.8,2.7392]
[1745749169039,1.6154,1811.9,1811.8,2.7392]
[1745749170138,5.3374,1811.9,1811.8,2.7392]
[1745749170338,3.722,1811.9,1811.8,2.7392]
[1745749172136,3.03211913,1811.9,1811.8,2.7392]
[1745749172334,2.71877,1812.3,1812.1,1.10342]
[1745749173135,6.44077,1812.3,1812.1,1.10342]
[1745749173742,6.44077,1812.3,1812.1,3.49802]
[1745749175842,6.44077,1812.3,1812.2,1.10338]
[1745749176740,6.44077,1812.3,1812.1,3.49801]
[1745749177042,2.486,1812.2,1812.1,3.49801]
[1745749178140,6.208,1812.2,1812.1,3.49801]
[1745749179044,7.31138,1812.2,1812.1,2.71471]
[1745749179237,6.208,1812.2,1812.1,2.71471]
[1745749180035,7.31138,1812.2,1812.0,0.8028]
[1745749180343,1.6545,1812.1,1812.0,3.5065]
[1745749181047,1.6545,1812.1,1811.7,3.2078]
[1745749181348,1.10365,1811.8,1811.6,50.91241479]
[1745749181644,1.7084,1811.7,1811.6,52.59491479]
[1745749181943,2.5338,1811.7,1811.6,52.59491479]
[1745749182147,6.2558,1811.7,1811.6,51.77271479]
[1745749183944,7.35949,1811.7,1811.6,51.77271479]
[1745749184144,7.35949,1811.7,1811.6,43.3259]
[1745749184447,7.35949,1811.7,1811.6,42.4825]
[1745749184651,1.10377,1811.6,1811.4,3.52537]
[1745749184841,2.68747,1811.6,1811.4,3.52537]
[1745749185042,2.68747,1811.6,1811.5,2.66361]
[1745749185243,6.40947,1811.6,1811.5,43.46361]
[1745749186536,6.40947,1811.6,1811.5,40.8]
[1745749186742,1.10381,1811.5,1811.4,0.8617]
[1745749186937,2.82121,1811.5,1811.4,0.8617]
[1745749187146,1.10387,1811.4,1811.3,2.4072]
[1745749187341,2.82127,1811.4,1811.3,43.2072]
[1745749188045,1.7174,1811.4,1811.3,44.31113]
[1745749188349,6.54327,1811.4,1811.3,43.2072]
[1745749188741,6.54327,1811.4,1811.3,40.8]
[1745749189151,5.4394,1811.4,1811.2,0.791]
[1745749189348,1.10393,1811.3,1811.2,0.791]
[1745749189647,2.82133,1811.3,1811.2,43.1979]
[1745749189851,2.82133,1811.3,1811.2,2.3979]
[1745749190049,1.7174,1811.3,1811.2,2.3979]
[1745749190251,6.54333,1811.3,1811.2,2.3979]
[1745749190449,8.19653,1811.3,1811.2,1.6069]
[1745749193150,7.0926,1811.3,1811.0,0.8589]
[1745749193353,6.54339,1811.3,1811.1,3.64804]
[1745749193544,6.54339,1811.3,1811.2,1.6803]
[1745749193744,6.54339,1811.3,1811.1,40.8]
[1745749193745,1.10399,1811.2,1811.1,40.8]
[1745749194051,1.10399,1811.2,1811.0,3.4029]
[1745749194052,1.10405,1811.1,1811.0,3.4029]
[1745749194253,1.10405,1811.1,1811.0,2.5392]
[1745749194453,1.10411,1811.0,1810.9,0.8637]
[1745749194752,1.10411,1811.0,1810.9,41.6637]
[1745749195251,4.82611,1811.0,1810.9,41.6637]
[1745749195753,4.82611,1811.0,1810.9,40.8]
[1745749195955,1.10418,1810.9,1810.7,4.31206]
[1745749196155,5.60518,1810.9,1810.7,6.00376]
[1745749196451,5.60518,1810.9,1810.8,1.6917]
[1745749196648,8.81298,1810.9,1810.8,1.6917]
[1745749196846,6.9298,1810.9,1810.8,2.79594]
[1745749197347,8.03398,1810.9,1810.8,1.6917]
[1745749197954,8.03398,1810.9,1810.8,3.3885]
[1745749198857,8.03398,1810.9,1810.8,4.49274]
[1745749199154,8.03398,1810.9,1810.8,3.3885]
[1745749199450,8.03398,1810.9,1810.8,44.1885]
[1745749199649,6.9298,1810.9,1810.4,9.1658]
[1745749199955,6.9298,1810.9,1810.5,2.4229]
[1745749200156,1.10426,1810.8,1810.6,43.54022]
[1745749200452,1.89446,1810.8,1810.6,43.54022]
[1745749200652,1.89446,1810.8,1810.7,1.6359]
[1745749201155,5.61646,1810.8,1810.7,1.6359]
[1745749201865,5.61646,1810.8,1810.7,2.4651]
[1745749202464,4.5122,1810.8,1810.7,3.5694]
[1745749202763,3.722,1810.8,1810.7,3.5694]
[1745749204163,4.82624,1810.8,1810.7,3.5694]
[1745749205267,4.82624,1810.8,1810.7,2.4651]
[1745749205462,4.82624,1810.8,1810.7,3.5694]
[1745749205663,4.82624,1810.8,1810.7,2.4651]
[1745749205968,4.82624,1810.8,1810.7,3.5694]
[1745749206969,3.722,1810.8,1810.7,3.5694]
[1745749208070,4.82624,1810.8,1810.7,3.5694]
[1745749209365,3.722,1810.8,1810.7,3.5694]
[1745749209776,4.82624,1810.8,1810.7,3.5694]
[1745749210578,3.722,1810.8,1810.7,3.5694]
[1745749211076,3.0592619,1810.8,1810.7,3.5694]
[1745749215884,3.0592619,1810.8,1810.7,8.5694]
[1745749216086,7.541,1811.3,1811.2,1.10399]
[1745749216781,9.1748,1811.3,1811.2,1.10399]
[1745749216983,8.3676,1811.3,1811.2,1.10399]
[1745749217183,12.0896,1811.3,1811.2,1.10399]
[1745749217486,12.0896,1811.3,1811.1,1.10404]
[1745749217685,4.37513,1811.2,1811.0,1.95389]
[1745749217985,1.6802,1811.1,1811.0,3.54439]
[1745749218183,5.4022,1811.1,1811.0,3.54439]
[1745749221086,4.73953844,1811.1,1811.0,3.54439]
[1745749221284,3.722,1811.1,1811.0,3.54439]
[1745749232985,6.2059,1811.1,1811.0,3.54439]
[1745749233385,6.2059,1811.1,1811.0,2.69459]
[1745749233996,6.2059,1811.1,1810.9,4.0701]
[1745749234294,1.6244,1811.0,1810.9,5.87588]
[1745749235187,5.3464,1811.0,1810.9,5.87588]
[1745749239996,1.10418,1810.9,1810.8,2.80902]
[1745749240196,6.1693,1810.9,1810.8,4.47922]
[1745749240495,1.10426,1810.8,1810.6,44.0078]
[1745749240694,2.71946,1810.8,1810.6,44.0078]
[1745749240994,2.71946,1810.8,1810.7,1.1043]
[1745749241192,6.44146,1810.8,1810.7,1.1043]
[1745749241397,5.3372,1810.8,1810.7,1.1043]
[1745749241588,5.3372,1810.8,1810.7,2.7745]
[1745749241992,3.722,1810.8,1810.7,3.583]
[1745749243101,5.4068,1810.8,1810.7,3.583]
[1745749243286,4.74401554,1810.8,1810.7,3.583]
[1745749244796,3.05921554,1810.8,1810.7,3.583]
[1745749251405,4.77241554,1810.8,1810.7,3.583]
[1745749253199,4.10963442,1810.8,1810.7,3.583]
[1745749253503,3.50067442,1810.8,1810.7,1.6702]
[1745749253704,5.21387442,1810.8,1810.7,2.7745]
[1745749254707,5.21387442,1810.8,1810.6,44.0078]
[1745749254898,1.623,1810.7,1810.6,46.69176]
[1745749255094,2.4308,1810.7,1810.6,46.69176]
[1745749256104,6.1528,1810.7,1810.6,46.69176]
[1745749257309,7.2571,1810.7,1810.6,40.8]
[1745749257599,8.0444,1810.7,1810.6,1.10436]
[1745749257993,1.10436,1810.6,1810.5,3.54448]
[1745749258198,5.3739,1810.6,1810.5,44.34448]
[1745749258896,5.3739,1810.6,1810.5,3.54448]
[1745749260409,5.3739,1810.6,1810.5,4.39408]
[1745749261111,6.47826,1810.6,1810.5,3.54448]
[1745749261303,5.3739,1810.6,1810.5,3.54448]
[1745749261503,5.3739,1810.6,1810.5,4.39408]
[1745749262904,5.3739,1810.6,1810.5,3.54448]
[1745749263303,4.71101658,1810.6,1810.5,3.54448]
[1745749263515,5.81537658,1810.6,1810.5,2.4401]
[1745749264011,5.81537658,1810.6,1810.5,1.6243]
[1745749264210,5.81537658,1810.6,1810.4,4.31226]
[1745749264410,0.8574,1810.5,1810.4,4.31226]
[1745749264611,0.8574,1810.5,1810.4,5.96966]
[1745749265119,4.5794,1810.5,1810.4,5.96966]
[1745749265314,4.5794,1810.5,1810.4,6.81646]
[1745749265618,3.722,1810.5,1810.4,6.81646]
[1745749269217,6.1642,1810.6,1810.5,1.10442]
[1745749269512,6.1642,1810.6,1810.5,2.81502]
[1745749269820,7.26856,1810.6,1810.5,2.81502]
[1745749270023,7.26856,1810.6,1810.5,1.7106]
[1745749270518,1.10442,1810.5,1810.4,4.31223]
[1745749270722,2.77602,1810.5,1810.4,6.02283]
[1745749270910,1.6716,1810.5,1810.4,6.02283]
[1745749271110,5.3936,1810.5,1810.4,6.02283]
[1745749272222,3.722,1810.5,1810.4,6.02283]
[1745749272522,3.722,1810.5,1810.4,6.83153]
[1745749272819,3.722,1810.5,1810.4,6.02283]
[1745749273019,4.82642,1810.5,1810.4,6.02283]
[1745749273222,5.76210001,1810.5,1810.4,1.7106]
[1745749273419,4.65768001,1810.5,1810.3,0.8372]
[1745749273607,4.65768001,1810.5,1810.3,2.4734]
[1745749273810,1.89398,1810.4,1810.3,43.5407]
[1745749274012,3.49258,1810.4,1810.3,43.5407]
[1745749274523,3.05908001,1810.5,1810.4,1.10448]
[1745749274823,3.05908001,1810.5,1810.4,4.45068]
[1745749275219,0.8014,1810.6,1810.5,1.10442]
[1745749275422,0.8014,1810.6,1810.5,2.79622]
[1745749275623,1.90576,1810.6,1810.5,2.79622]
[1745749275922,0.8014,1810.6,1810.5,2.79622]
[1745749276222,4.5234,1810.6,1810.5,2.79622]
[1745749276425,5.62776,1810.6,1810.5,2.79622]
[1745749277223,5.62776,1810.6,1810.5,1.6918]
[1745749277424,7.19436,1810.6,1810.5,1.6918]
[1745749277723,7.19436,1810.6,1810.5,2.79622]
[1745749278724,7.19436,1810.6,1810.5,1.6918]
[1745749279727,1.10442,1810.5,1810.4,1.94913]
[1745749280023,2.81012,1810.5,1810.4,3.66283]
[1745749280223,2.81012,1810.5,1810.4,1.7137]
[1745749281322,1.10451,1810.4,1810.2,2.72075]
[1745749281513,3.50911,1810.4,1810.3,1.655]
[1745749281717,3.50911,1810.4,1810.3,42.455]
[1745749282021,3.50911,1810.4,1810.3,1.655]
[1745749282220,7.23111,1810.4,1810.3,1.655]
[1745749282625,6.1266,1810.4,1810.3,2.75954]
[1745749282819,5.62578,1810.4,1810.3,2.75954]
[1745749283017,4.5213,1810.4,1810.3,2.75954]
[1745749283324,3.05903914,1810.4,1810.3,2.75954]
[1745749283524,4.16351914,1810.4,1810.3,2.75954]
[1745749284720,3.05903914,1810.4,1810.3,2.75954]
[1745749286326,4.16351914,1810.4,1810.3,2.75954]
[1745749286725,5.75101914,1810.4,1810.3,1.655]
[1745749287128,5.75101914,1810.4,1810.3,2.75954]
[1745749287624,5.75101914,1810.4,1810.3,1.655]
[1745749288022,5.75101914,1810.4,1810.3,2.75954]
[1745749288635,4.64653914,1810.4,1810.3,2.75954]
[1745749288822,3.05903914,1810.4,1810.3,2.75954]
[1745749289022,4.16351914,1810.4,1810.3,2.75954]
[1745749292119,3.05903914,1810.4,1810.3,2.75954]
[1745749292323,4.16351914,1810.4,1810.3,2.75954]
[1745749293319,3.5005757,1810.4,1810.3,2.75954]
[1745749295531,2.3960957,1810.4,1810.3,2.75954]
[1745749297126,3.5005757,1810.4,1810.3,1.655]
[1745749297824,5.1514757,1810.4,1810.3,1.655]
[1745749298236,5.1514757,1810.4,1810.3,2.75954]
[1745749298532,3.5005757,1810.4,1810.3,2.75954]
[1745749298734,3.5005757,1810.4,1810.3,1.655]
[1745749299428,5.1514757,1810.4,1810.3,1.655]
[1745749303733,5.9350757,1810.4,1810.3,1.655]
[1745749304927,9.1428757,1810.4,1810.3,1.655]
[1745749307042,11.5643957,1810.4,1810.0,4.3125]
[1745749307239,1.10466,1810.1,1810.0,5.916]
[1745749307541,2.4461,1810.3,1810.0,46.716]
[1745749307842,1.1046,1810.2,1810.0,46.716]
[1745749308340,1.1046,1810.2,1810.1,1.6356]
[1745749309247,4.8266,1810.2,1810.1,1.6356]
[1745749309539,4.8266,1810.2,1810.1,2.74026]
[1745749310140,3.722,1810.2,1810.1,2.74026]
[1745749311346,4.8266,1810.2,1810.1,2.74026]
[1745749311545,4.8266,1810.2,1810.1,1.6356]
[1745749312744,4.8266,1810.2,1810.1,2.74026]
[1745749314335,4.8266,1810.2,1810.1,1.6356]
[1745749317344,4.16357031,1810.2,1810.1,1.6356]
[1745749319552,4.16357031,1810.2,1810.1,2.74026]
[1745749319852,4.16357031,1810.2,1810.1,1.6356]
[1745749324358,4.16357031,1810.2,1810.1,2.74026]
[1745749324654,4.16357031,1810.2,1810.1,1.6356]
[1745749327550,5.72707031,1810.2,1810.1,1.6356]
[1745749330056,4.16357031,1810.2,1810.1,1.6356]
[1745749331858,3.50051156,1810.2,1810.1,1.6356]
[1745749344072,2.39591156,1810.2,1810.1,2.74026]
[1745749344966,1.73291401,1810.2,1810.1,2.74026]
[1745749345164,13.82645013,1810.4,1810.2,1.10457]
[1745749345367,13.82645013,1810.4,1810.3,2.4293]
[1745749345869,4.63054,1810.4,1810.3,2.4293]
[1745749346167,8.35254,1810.4,1810.3,2.4293]
[1745749352462,7.248,1810.4,1810.3,3.53384]
[1745749352665,3.722,1810.4,1810.3,3.53384]
[1745749353163,3.2078,1810.5,1810.4,1.10448]
[1745749353369,4.31222,1810.5,1810.4,2.4111]
[1745749354058,8.03422,1810.5,1810.4,2.4111]
[1745749354973,7.37130594,1810.5,1810.4,2.4111]
[1745749355268,7.37130594,1810.5,1810.4,3.51558]
[1745749355471,6.26688594,1810.5,1810.4,3.51558]
[1745749355673,7.37130594,1810.5,1810.4,2.4111]
[1745749357680,4.82642,1810.5,1810.4,2.4111]
[1745749358369,3.722,1810.5,1810.4,3.51558]
[1745749359175,4.3122,1810.6,1810.4,3.51558]
[1745749359372,4.3122,1810.6,1810.5,1.607]
[1745749360174,8.0342,1810.6,1810.5,1.607]
[1745749361175,4.8264,1810.6,1810.5,1.607]
[1745749361375,8.0342,1810.6,1810.5,1.607]
[1745749364979,4.8264,1810.6,1810.5,1.607]
[1745749365279,8.0342,1810.6,1810.5,1.607]
[1745749366280,8.0342,1810.6,1810.5,2.71142]
[1745749366468,8.0342,1810.6,1810.5,1.607]
[1745749367679,4.8264,1810.6,1810.5,1.607]
[1745749367981,8.0342,1810.6,1810.5,1.607]
[1745749368977,6.9298,1810.6,1810.5,2.71142]
[1745749369180,3.0591296,1810.6,1810.5,2.71142]
[1745749372280,4.1634896,1810.6,1810.5,1.607]
[1745749373889,4.1634896,1810.6,1810.5,2.71142]
[1745749376184,3.0591296,1810.6,1810.5,2.71142]
[1745749376376,4.1634896,1810.6,1810.5,1.607]
[1745749376787,4.1634896,1810.6,1810.5,2.71142]
[1745749379285,3.50059834,1810.6,1810.5,2.71142]
[1745749380083,5.92023834,1810.6,1810.2,44.0078]
[1745749380288,1.10458,1810.3,1810.1,1.10465]
[1745749380489,1.10458,1810.3,1810.1,2.67485]
[1745749380788,1.10458,1810.3,1810.2,1.5702]
[1745749381088,4.82658,1810.3,1810.2,1.5702]
[1745749381284,5.65188,1810.3,1810.2,1.5702]
[1745749382988,5.65184,1810.3,1810.2,1.5702]
[1745749383189,5.65184,1810.3,1810.2,2.4293]
[1745749384692,4.5473,1810.3,1810.2,3.5339]
[1745749384888,3.722,1810.3,1810.2,3.5339]
[1745749385092,3.722,1810.3,1810.2,2.4293]
[1745749385391,3.722,1810.3,1810.2,3.5339]
[1745749386091,1.90656,1810.5,1810.2,3.5339]
[1745749386396,1.10448,1810.4,1810.3,2.5417]
[1745749386592,1.10448,1810.4,1810.3,0.8644]
[1745749387092,4.82648,1810.4,1810.3,0.8644]
[1745749387899,3.722,1810.4,1810.3,1.96894]
[1745749388089,1.10444,1810.5,1810.3,1.96894]
[1745749388289,1.10444,1810.5,1810.4,0.8598]
[1745749389192,4.82644,1810.5,1810.4,0.8598]
[1745749389492,1.10448,1810.4,1810.3,0.8644]
[1745749390095,4.82648,1810.4,1810.3,41.6644]
[1745749391097,4.82648,1810.4,1810.3,0.8644]
[1745749395101,1.10448,1810.4,1810.3,0.8644]
[1745749396102,4.82648,1810.4,1810.3,0.8644]
[1745749397100,1.10448,1810.4,1810.3,0.8644]
[1745749400198,1.10454,1810.3,1810.2,41.6598]
[1745749400396,1.10454,1810.3,1810.2,42.473]
[1745749400597,2.66652,1810.4,1810.2,43.5776]
[1745749402311,1.10452,1810.4,1810.2,43.5776]
[1745749402804,4.33216,1810.5,1810.3,1.10453]
[1745749403106,4.33216,1810.5,1810.2,43.57756]
[1745749403107,1.10448,1810.4,1810.2,43.57756]
[1745749404207,3.722,1810.4,1810.2,43.57756]
[1745749404904,3.722,1810.4,1810.3,1.10454]
[1745749407205,3.722,1810.4,1810.3,2.72874]
[1745749414418,3.05904083,1810.4,1810.3,2.72874]
[1745749416208,7.83619,1810.6,1810.4,1.10446]
[1745749416420,7.83619,1810.6,1810.4,1.92396]
[1745749416608,7.83619,1810.6,1810.5,1.573]
[1745749416813,9.47619,1810.6,1810.5,1.573]
[1745749417121,13.19819,1810.6,1810.5,1.573]
[1745749419024,9.99039,1810.6,1810.5,1.573]
[1745749419323,13.19819,1810.6,1810.5,1.573]
[1745749419524,9.67419,1810.6,1810.5,1.573]
[1745749429130,6.46639,1810.6,1810.5,1.573]
[1745749429631,6.46639,1810.6,1810.5,2.4248]
[1745749429928,6.46639,1810.6,1810.5,1.573]
[1745749436236,5.362,1810.6,1810.5,1.573]
[1745749436532,3.05907456,1810.6,1810.5,2.67742]
[1745749437337,13.82321013,1810.7,1810.5,2.67742]
[1745749437530,13.82321013,1810.7,1810.6,3.3613]
[1745749438134,17.54521013,1810.7,1810.6,3.3613]
[1745749438336,16.44091013,1810.7,1810.6,3.3613]
[1745749438936,16.44091013,1810.7,1810.6,4.46566]
[1745749439234,12.71891013,1810.7,1810.6,4.46566]
[1745749439431,13.82321013,1810.7,1810.6,3.3613]
[1745749440234,9.1427,1810.7,1810.6,3.3613]